[Event "Titled Tuesday Blitz July 13 2021"]
[White "Ozen, Bahadir"]
[Black "Zhigalko, Sergei"]
[WhiteFideId "6337058"]
[BlackFideId "13502956"]
[WhiteElo "2707"]
[BlackElo "2923"]
[Result "0-1"]
[Round "09"]
[TimeControl "180+1"]
[Date "2021.07.13"]
[WhiteClock "0:00:01"]
[BlackClock "0:00:03"]

1. d4 {[%clk 0:02:59]}  Nf6 {[%clk 0:02:59]} 2. Nf3 {[%clk 0:02:59]}  e6 {[%clk 0:02:59]} 3. e3 {[%clk 0:02:59]}  b6 {[%clk 0:02:59]} 4. Bd3 {[%clk 0:02:57]}  Bb7 {[%clk 0:02:59]} 5. O-O {[%clk 0:02:57]}  d5 {[%clk 0:02:59]} 6. c4 {[%clk 0:02:51]}  Bd6 {[%clk 0:02:59]} 7. cxd5 {[%clk 0:02:49]}  exd5 {[%clk 0:02:59]} 8. b3 {[%clk 0:02:49]}  Qe7 {[%clk 0:02:55]} 9. Bb2 {[%clk 0:02:32]}  O-O {[%clk 0:02:53]} 10. Qc1 {[%clk 0:02:32]}  Nbd7 {[%clk 0:02:48]} 11. Ba3 {[%clk 0:02:31]}  c5 {[%clk 0:02:48]} 12. Nc3 {[%clk 0:02:28]}  Rac8 {[%clk 0:02:46]} 13. Qb2 {[%clk 0:02:10]}  Rfe8 {[%clk 0:02:38]} 14. Ne2 {[%clk 0:01:55]}  g6 {[%clk 0:02:24]} 15. Rac1 {[%clk 0:01:52]}  Rc7 {[%clk 0:02:01]} 16. Rfd1 {[%clk 0:01:47]}  Rec8 {[%clk 0:02:00]} 17. Ng3 {[%clk 0:01:45]}  c4 {[%clk 0:01:51]} 18. Bxd6 {[%clk 0:01:44]}  Qxd6 {[%clk 0:01:52]} 19. bxc4 {[%clk 0:01:42]}  dxc4 {[%clk 0:01:52]} 20. Bb1 {[%clk 0:01:38]}  c3 {[%clk 0:01:48]} 21. Qe2 {[%clk 0:01:35]}  Qa3 {[%clk 0:01:35]} 22. e4 {[%clk 0:01:28]}  Ba6 {[%clk 0:01:29]} 23. Qe3 {[%clk 0:01:16]}  Nf8 {[%clk 0:00:24]} 24. h3 {[%clk 0:01:04]}  Bb5 {[%clk 0:00:21]} 25. Qg5 {[%clk 0:00:43]}  Ba4 {[%clk 0:00:11]} 26. Re1 {[%clk 0:00:21]}  Ne8 {[%clk 0:00:06]} 27. Bd3 {[%clk 0:00:14]}  c2 {[%clk 0:00:05]} 28. Ba6 {[%clk 0:00:12]}  Rb8 {[%clk 0:00:04]} 29. Nf5 {[%clk 0:00:12]}  Ne6 {[%clk 0:00:04]} 30. Nh6+ {[%clk 0:00:11]}  Kg7 {[%clk 0:00:04]} 31. Nf5+ {[%clk 0:00:11]}  Kh8 {[%clk 0:00:04]} 32. Qh6 {[%clk 0:00:09]}  Qf8 {[%clk 0:00:04]} 33. Qxf8+ {[%clk 0:00:08]}  Nxf8 {[%clk 0:00:05]} 34. Ne3 {[%clk 0:00:07]}  Ne6 {[%clk 0:00:06]} 35. Bf1 {[%clk 0:00:04]}  Rd8 {[%clk 0:00:05]} 36. Nd5 {[%clk 0:00:04]}  Rcd7 {[%clk 0:00:04]} 37. Ne5 {[%clk 0:00:04]}  Nxd4 {[%clk 0:00:03]} 38. Nxd7 {[%clk 0:00:04]}  Rxd7 {[%clk 0:00:04]} 39. Nc3 {[%clk 0:00:03]}  Bc6 {[%clk 0:00:03]} 40. Re3 {[%clk 0:00:02]}  Nd6 {[%clk 0:00:04]} 41. Rd3 {[%clk 0:00:02]}  Nxe4 {[%clk 0:00:04]} 42. Nxe4 {[%clk 0:00:02]}  Bxe4 {[%clk 0:00:05]} 43. Rc3 {[%clk 0:00:02]}  Kg7 {[%clk 0:00:05]} 44. f3 {[%clk 0:00:02]}  Bf5 {[%clk 0:00:05]} 45. Kf2 {[%clk 0:00:03]}  h5 {[%clk 0:00:05]} 46. a4 {[%clk 0:00:03]}  h4 {[%clk 0:00:06]} 47. Ke3 {[%clk 0:00:03]}  Kf6 {[%clk 0:00:06]} 48. Rc4 {[%clk 0:00:03]}  Ne6 {[%clk 0:00:06]} 49. R4xc2 {[%clk 0:00:03]}  Bxc2 {[%clk 0:00:06]} 50. Rxc2 {[%clk 0:00:04]}  Rc7 {[%clk 0:00:07]} 51. Rd2 {[%clk 0:00:02]}  Rc3+ {[%clk 0:00:06]} 52. Kf2 {[%clk 0:00:02]}  Ra3 {[%clk 0:00:06]} 53. Bb5 {[%clk 0:00:03]}  Nc5 {[%clk 0:00:06]} 54. Rd6+ {[%clk 0:00:01]}  Kg7 {[%clk 0:00:07]} 55. Rd4 {[%clk 0:00:02]}  Ra2+ {[%clk 0:00:07]} 56. Kg1 {[%clk 0:00:02]}  g5 {[%clk 0:00:07]} 57. Rg4 {[%clk 0:00:03]}  Kh6 {[%clk 0:00:07]} 58. Rd4 {[%clk 0:00:04]}  Ne6 {[%clk 0:00:07]} 59. Rd7 {[%clk 0:00:04]}  Nf4 {[%clk 0:00:05]} 60. Bf1 {[%clk 0:00:02]}  Rxa4 {[%clk 0:00:03]} 61. Rxf7 {[%clk 0:00:03]}  Kg6 {[%clk 0:00:03]} 62. Rb7 {[%clk 0:00:03]}  Kf6 {[%clk 0:00:03]} 63. Kf2 {[%clk 0:00:03]}  Ra2+ {[%clk 0:00:04]} 64. Ke3 {[%clk 0:00:03]}  Ra3+ {[%clk 0:00:03]} 65. Kd4 {[%clk 0:00:03]}  Ra4+ {[%clk 0:00:03]} 66. Ke3 {[%clk 0:00:03]}  Ra1 {[%clk 0:00:03]} 67. Bc4 {[%clk 0:00:03]}  Nxg2+ {[%clk 0:00:03]} 68. Kd4 {[%clk 0:00:03]}  Nf4 {[%clk 0:00:03]} 69. Rf7+ {[%clk 0:00:04]}  Kg6 {[%clk 0:00:03]} 70. Rd7 {[%clk 0:00:04]}  Ra5 {[%clk 0:00:04]} 71. Rd6+ {[%clk 0:00:04]}  Kg7 {[%clk 0:00:04]} 72. Rd7+ {[%clk 0:00:04]}  Kf6 {[%clk 0:00:05]} 73. Rb7 {[%clk 0:00:04]}  Ne6+ {[%clk 0:00:04]} 74. Ke3 {[%clk 0:00:04]}  Ra3+ {[%clk 0:00:04]} 75. Kd2 {[%clk 0:00:04]}  Nf4 {[%clk 0:00:04]} 76. Rf7+ {[%clk 0:00:03]}  Kg6 {[%clk 0:00:05]} 77. Rd7 {[%clk 0:00:02]}  Nxh3 {[%clk 0:00:04]} 78. Rd6+ {[%clk 0:00:03]}  Kg7 {[%clk 0:00:04]} 79. Rd7+ {[%clk 0:00:02]}  Kf6 {[%clk 0:00:04]} 80. Rd6+ {[%clk 0:00:03]}  Ke7 {[%clk 0:00:04]} 81. Rg6 {[%clk 0:00:03]}  Kd7 {[%clk 0:00:03]} 82. Be6+ {[%clk 0:00:03]}  Ke7 {[%clk 0:00:03]} 83. Bxh3 {[%clk 0:00:03]}  Rxf3 {[%clk 0:00:04]} 84. Bg4 {[%clk 0:00:04]}  Rg3 {[%clk 0:00:04]} 85. Rxg5 {[%clk 0:00:03]}  Kf6 {[%clk 0:00:04]} 86. Rf5+ {[%clk 0:00:03]}  Kg6 {[%clk 0:00:03]} 87. Rf7 {[%clk 0:00:01]}  Kxf7 {[%clk 0:00:03]} 0-1


[Site "https://www.chess.com"]

[Event "Titled Tuesday Blitz July 13 2021"]
[White "Pajeken, Jakob Leon"]
[Black "Piesik, Piotr"]
[WhiteFideId "12942839"]
[BlackFideId "1136194"]
[WhiteElo "2231"]
[BlackElo "2354"]
[Result "0-1"]
[Round "09"]
[TimeControl "180+1"]
[Date "2021.07.13"]
[WhiteClock "0:00:03"]
[BlackClock "0:01:07"]

1. d4 {[%clk 0:03:00]}  c5 {[%clk 0:02:59]} 2. e4 {[%clk 0:02:56]}  cxd4 {[%clk 0:02:58]} 3. Nf3 {[%clk 0:02:56]}  d6 {[%clk 0:02:58]} 4. Nxd4 {[%clk 0:02:56]}  Nf6 {[%clk 0:02:58]} 5. Nc3 {[%clk 0:02:56]}  a6 {[%clk 0:02:59]} 6. Be3 {[%clk 0:02:56]}  e5 {[%clk 0:02:54]} 7. Nf3 {[%clk 0:02:56]}  h6 {[%clk 0:02:54]} 8. Bc4 {[%clk 0:02:54]}  Nc6 {[%clk 0:02:51]} 9. O-O {[%clk 0:02:52]}  Be7 {[%clk 0:02:50]} 10. Re1 {[%clk 0:02:43]}  O-O {[%clk 0:02:46]} 11. Nd5 {[%clk 0:02:43]}  Nxd5 {[%clk 0:02:46]} 12. Bxd5 {[%clk 0:02:38]}  Be6 {[%clk 0:02:45]} 13. c4 {[%clk 0:02:35]}  Rc8 {[%clk 0:02:40]} 14. Rc1 {[%clk 0:02:30]}  Qd7 {[%clk 0:02:38]} 15. a3 {[%clk 0:02:20]}  Kh7 {[%clk 0:02:37]} 16. Qd2 {[%clk 0:02:16]}  f5 {[%clk 0:02:35]} 17. Bxe6 {[%clk 0:02:14]}  Qxe6 {[%clk 0:02:35]} 18. exf5 {[%clk 0:02:15]}  Rxf5 {[%clk 0:02:31]} 19. b4 {[%clk 0:02:07]}  Rcf8 {[%clk 0:02:25]} 20. b5 {[%clk 0:02:04]}  axb5 {[%clk 0:02:25]} 21. cxb5 {[%clk 0:02:05]}  Nd8 {[%clk 0:02:24]} 22. Qc2 {[%clk 0:02:02]}  Qg6 {[%clk 0:02:21]} 23. Bb6 {[%clk 0:01:49]}  Ne6 {[%clk 0:02:18]} 24. Kh1 {[%clk 0:01:42]}  Nf4 {[%clk 0:02:02]} 25. g3 {[%clk 0:01:38]}  Nh3 {[%clk 0:01:57]} 26. Kg2 {[%clk 0:01:21]}  Nf4+ {[%clk 0:01:57]} 27. Kh1 {[%clk 0:01:12]}  Nd5 {[%clk 0:01:56]} 28. Nd4 {[%clk 0:00:45]}  exd4 {[%clk 0:01:49]} 29. Bxd4 {[%clk 0:00:46]}  Bf6 {[%clk 0:01:45]} 30. Bxf6 {[%clk 0:00:43]}  R5xf6 {[%clk 0:01:45]} 31. Qxg6+ {[%clk 0:00:37]}  Kxg6 {[%clk 0:01:45]} 32. f4 {[%clk 0:00:38]}  Ra8 {[%clk 0:01:32]} 33. Red1 {[%clk 0:00:36]}  Ne3 {[%clk 0:01:31]} 34. Rd3 {[%clk 0:00:34]}  Ng4 {[%clk 0:01:30]} 35. Kg2 {[%clk 0:00:33]}  Re6 {[%clk 0:01:28]} 36. h3 {[%clk 0:00:26]}  Nf6 {[%clk 0:01:19]} 37. g4 {[%clk 0:00:24]}  Re2+ {[%clk 0:01:17]} 38. Kf3 {[%clk 0:00:22]}  Rh2 {[%clk 0:01:16]} 39. Kg3 {[%clk 0:00:21]}  Ra2 {[%clk 0:01:16]} 40. f5+ {[%clk 0:00:19]}  Kh7 {[%clk 0:01:16]} 41. Kh4 {[%clk 0:00:12]}  R2xa3 {[%clk 0:01:14]} 42. Rxd6 {[%clk 0:00:12]}  Ne4 {[%clk 0:01:09]} 43. Rd7 {[%clk 0:00:04]}  Nf2 {[%clk 0:01:08]} 44. g5 {[%clk 0:00:03]}  Rxh3# {[%clk 0:01:07]} 0-1


[Site "https://www.chess.com"]

[Event "Titled Tuesday Blitz July 13 2021"]
[White "Papasimakopoulos, Alexandros"]
[Black "Ghazarian, Kirk"]
[WhiteFideId "4244125"]
[BlackFideId "30908604"]
[WhiteElo "2352"]
[BlackElo "2003"]
[Result "0-1"]
[Round "09"]
[TimeControl "180+1"]
[Date "2021.07.13"]
[WhiteClock "0:00:13"]
[BlackClock "0:00:09"]

1. d4 {[%clk 0:03:00]}  Nf6 {[%clk 0:02:57]} 2. c4 {[%clk 0:03:00]}  g6 {[%clk 0:02:57]} 3. Nc3 {[%clk 0:03:01]}  d6 {[%clk 0:02:55]} 4. e4 {[%clk 0:03:01]}  Bg7 {[%clk 0:02:55]} 5. f3 {[%clk 0:03:01]}  O-O {[%clk 0:02:54]} 6. Nge2 {[%clk 0:03:01]}  c5 {[%clk 0:02:55]} 7. d5 {[%clk 0:03:01]}  e6 {[%clk 0:02:50]} 8. Ng3 {[%clk 0:03:01]}  h5 {[%clk 0:02:49]} 9. Bg5 {[%clk 0:03:00]}  Qb6 {[%clk 0:02:39]} 10. Qd2 {[%clk 0:02:56]}  Nh7 {[%clk 0:02:34]} 11. Bh4 {[%clk 0:02:52]}  Nd7 {[%clk 0:02:28]} 12. Be2 {[%clk 0:02:39]}  g5 {[%clk 0:02:23]} 13. Bxg5 {[%clk 0:02:39]}  Nxg5 {[%clk 0:02:23]} 14. Qxg5 {[%clk 0:02:40]}  Qxb2 {[%clk 0:02:24]} 15. Rc1 {[%clk 0:02:40]}  f6 {[%clk 0:02:03]} 16. Qe3 {[%clk 0:02:36]}  f5 {[%clk 0:01:53]} 17. dxe6 {[%clk 0:02:29]}  f4 {[%clk 0:01:25]} 18. Qd2 {[%clk 0:02:29]}  Qxd2+ {[%clk 0:01:20]} 19. Kxd2 {[%clk 0:02:29]}  Ne5 {[%clk 0:01:19]} 20. Nxh5 {[%clk 0:02:17]}  Bxe6 {[%clk 0:01:19]} 21. Nxg7 {[%clk 0:02:15]}  Kxg7 {[%clk 0:01:20]} 22. Ke1 {[%clk 0:01:22]}  a6 {[%clk 0:01:05]} 23. Kf2 {[%clk 0:01:21]}  Bxc4 {[%clk 0:00:48]} 24. Rhd1 {[%clk 0:01:18]}  Bxe2 {[%clk 0:00:44]} 25. Kxe2 {[%clk 0:01:13]}  Rad8 {[%clk 0:00:41]} 26. a4 {[%clk 0:01:12]}  Kf7 {[%clk 0:00:33]} 27. Rb1 {[%clk 0:01:12]}  Rd7 {[%clk 0:00:32]} 28. Rb6 {[%clk 0:01:12]}  Ke6 {[%clk 0:00:30]} 29. Nd5 {[%clk 0:01:11]}  Nc6 {[%clk 0:00:26]} 30. Kf2 {[%clk 0:01:06]}  Nd4 {[%clk 0:00:23]} 31. Rdb1 {[%clk 0:01:05]}  Rff7 {[%clk 0:00:23]} 32. Rc1 {[%clk 0:01:01]}  Ke5 {[%clk 0:00:23]} 33. a5 {[%clk 0:01:00]}  Rh7 {[%clk 0:00:21]} 34. h3 {[%clk 0:00:54]}  Rhg7 {[%clk 0:00:21]} 35. Rh1 {[%clk 0:00:49]}  Rg3 {[%clk 0:00:18]} 36. h4 {[%clk 0:00:48]}  Rdg7 {[%clk 0:00:16]} 37. Rh2 {[%clk 0:00:49]}  Nb5 {[%clk 0:00:11]} 38. h5 {[%clk 0:00:46]}  c4 {[%clk 0:00:12]} 39. h6 {[%clk 0:00:44]}  Rh7 {[%clk 0:00:12]} 40. Rh5+ {[%clk 0:00:36]}  Kd4 {[%clk 0:00:13]} 41. Nxf4 {[%clk 0:00:35]}  Rg8 {[%clk 0:00:13]} 42. Ne2+ {[%clk 0:00:32]}  Kd3 {[%clk 0:00:12]} 43. e5 {[%clk 0:00:32]}  d5 {[%clk 0:00:11]} 44. e6 {[%clk 0:00:28]}  d4 {[%clk 0:00:10]} 45. e7 {[%clk 0:00:26]}  Rxe7 {[%clk 0:00:09]} 46. Nf4+ {[%clk 0:00:26]}  Kc2 {[%clk 0:00:09]} 47. h7 {[%clk 0:00:27]}  Rh8 {[%clk 0:00:09]} 48. Rbh6 {[%clk 0:00:27]}  d3 {[%clk 0:00:08]} 49. Ng6 {[%clk 0:00:28]}  d2 {[%clk 0:00:09]} 50. Nxh8 {[%clk 0:00:14]}  d1=Q {[%clk 0:00:09]} 51. Kg3 {[%clk 0:00:15]}  Qe1+ {[%clk 0:00:07]} 52. Kh2 {[%clk 0:00:15]}  Rxh7 {[%clk 0:00:05]} 53. Rxh7 {[%clk 0:00:15]}  c3 {[%clk 0:00:06]} 54. Rc5 {[%clk 0:00:13]}  Qe3 {[%clk 0:00:05]} 55. Rc8 {[%clk 0:00:12]}  Qf4+ {[%clk 0:00:05]} 56. Kh1 {[%clk 0:00:12]}  Kb2 {[%clk 0:00:06]} 57. Rxb7 {[%clk 0:00:12]}  c2 {[%clk 0:00:06]} 58. Rb6 {[%clk 0:00:12]}  c1=Q+ {[%clk 0:00:06]} 59. Rxc1 {[%clk 0:00:12]}  Qxc1+ {[%clk 0:00:06]} 60. Kh2 {[%clk 0:00:13]}  Qf4+ {[%clk 0:00:06]} 61. Kg1 {[%clk 0:00:13]}  Qe3+ {[%clk 0:00:06]} 62. Kf1 {[%clk 0:00:14]}  Kc2 {[%clk 0:00:04]} 63. Rb8 {[%clk 0:00:10]}  Nc3 {[%clk 0:00:03]} 64. Rd8 {[%clk 0:00:09]}  Qc1+ {[%clk 0:00:03]} 65. Kf2 {[%clk 0:00:09]}  Qg5 {[%clk 0:00:03]} 66. Rc8 {[%clk 0:00:08]}  Qxa5 {[%clk 0:00:04]} 67. Ng6 {[%clk 0:00:07]}  Qb6+ {[%clk 0:00:04]} 68. Kg3 {[%clk 0:00:05]}  Qxg6+ {[%clk 0:00:05]} 69. Kf2 {[%clk 0:00:06]}  Qf5 {[%clk 0:00:05]} 70. g4 {[%clk 0:00:07]}  Qf4 {[%clk 0:00:06]} 71. Rf8 {[%clk 0:00:06]}  Qxf8 {[%clk 0:00:05]} 72. Kg2 {[%clk 0:00:07]}  Qg8 {[%clk 0:00:05]} 73. Kg3 {[%clk 0:00:08]}  a5 {[%clk 0:00:05]} 74. f4 {[%clk 0:00:08]}  a4 {[%clk 0:00:06]} 75. g5 {[%clk 0:00:09]}  a3 {[%clk 0:00:07]} 76. f5 {[%clk 0:00:10]}  a2 {[%clk 0:00:08]} 77. Kf4 {[%clk 0:00:10]}  a1=Q {[%clk 0:00:09]} 78. g6 {[%clk 0:00:11]}  Qf1+ {[%clk 0:00:09]} 79. Kg5 {[%clk 0:00:12]}  Qxf5+ {[%clk 0:00:09]} 80. Kh6 {[%clk 0:00:13]}  Qfxg6# {[%clk 0:00:09]} 0-1


[Site "https://www.chess.com"]

[Event "Titled Tuesday Blitz July 13 2021"]
[White "Pourkashiyan, Atousa"]
[Black "Sellitti, Federico"]
[WhiteFideId "12502014"]
[BlackFideId "821829"]
[WhiteElo "2285"]
[BlackElo "2589"]
[Result "1-0"]
[Round "09"]
[TimeControl "180+1"]
[Date "2021.07.13"]
[WhiteClock "0:00:16"]
[BlackClock "0:00:08"]

1. e4 {[%clk 0:03:00]}  c5 {[%clk 0:02:59]} 2. Nf3 {[%clk 0:02:57]}  Nf6 {[%clk 0:03:00]} 3. e5 {[%clk 0:02:57]}  Nd5 {[%clk 0:03:00]} 4. Nc3 {[%clk 0:02:56]}  Nxc3 {[%clk 0:03:01]} 5. dxc3 {[%clk 0:02:57]}  Nc6 {[%clk 0:03:01]} 6. Bc4 {[%clk 0:02:52]}  e6 {[%clk 0:03:00]} 7. O-O {[%clk 0:02:51]}  Qc7 {[%clk 0:02:59]} 8. Re1 {[%clk 0:02:49]}  b6 {[%clk 0:02:59]} 9. Bf4 {[%clk 0:02:43]}  Bb7 {[%clk 0:02:58]} 10. Qd2 {[%clk 0:02:42]}  h6 {[%clk 0:02:58]} 11. Rad1 {[%clk 0:02:38]}  O-O-O {[%clk 0:02:57]} 12. Qe2 {[%clk 0:02:16]}  Kb8 {[%clk 0:02:23]} 13. a3 {[%clk 0:01:55]}  f5 {[%clk 0:02:08]} 14. h4 {[%clk 0:01:44]}  Be7 {[%clk 0:02:01]} 15. h5 {[%clk 0:01:44]}  g5 {[%clk 0:01:54]} 16. hxg6 {[%clk 0:01:44]}  Rdg8 {[%clk 0:01:53]} 17. Qd2 {[%clk 0:01:18]}  Kc8 {[%clk 0:01:44]} 18. b4 {[%clk 0:01:18]}  Rxg6 {[%clk 0:01:39]} 19. Bf1 {[%clk 0:01:17]}  Rhg8 {[%clk 0:01:34]} 20. Be3 {[%clk 0:01:17]}  Nxe5 {[%clk 0:01:21]} 21. Nxe5 {[%clk 0:01:13]}  Qxe5 {[%clk 0:01:06]} 22. Qxd7+ {[%clk 0:01:12]}  Kb8 {[%clk 0:01:04]} 23. Qxe7 {[%clk 0:01:03]}  Qe4 {[%clk 0:00:17]} 24. Rd8+ {[%clk 0:00:56]}  Bc8 {[%clk 0:00:16]} 25. Rxg8 {[%clk 0:00:28]}  Rxg8 {[%clk 0:00:17]} 26. Bd2 {[%clk 0:00:23]}  Qd5 {[%clk 0:00:13]} 27. Bf4+ {[%clk 0:00:20]}  Ka8 {[%clk 0:00:11]} 28. Qd6 {[%clk 0:00:19]}  Qb7 {[%clk 0:00:08]} 29. g3 {[%clk 0:00:16]} 1-0


[Site "https://www.chess.com"]

[Event "Titled Tuesday Blitz July 13 2021"]
[White "Prraneeth Vuppala"]
[Black "Samsonkin, Artiom"]
[WhiteFideId "46622373"]
[BlackFideId "13503111"]
[WhiteElo "1759"]
[BlackElo "2513"]
[Result "1-0"]
[Round "09"]
[TimeControl "180+1"]
[Date "2021.07.13"]
[WhiteClock "0:00:06"]
[BlackClock "0:00:06"]

1. d4 {[%clk 0:03:00]}  Nf6 {[%clk 0:02:59]} 2. c4 {[%clk 0:03:00]}  e6 {[%clk 0:03:00]} 3. Nf3 {[%clk 0:03:00]}  Bb4+ {[%clk 0:03:00]} 4. Bd2 {[%clk 0:03:00]}  Qe7 {[%clk 0:03:00]} 5. e3 {[%clk 0:02:58]}  O-O {[%clk 0:02:59]} 6. Bd3 {[%clk 0:02:56]}  a5 {[%clk 0:02:55]} 7. O-O {[%clk 0:02:53]}  d6 {[%clk 0:02:51]} 8. a3 {[%clk 0:02:47]}  Bxd2 {[%clk 0:02:51]} 9. Nbxd2 {[%clk 0:02:47]}  e5 {[%clk 0:02:51]} 10. Qc2 {[%clk 0:02:31]}  Re8 {[%clk 0:02:41]} 11. dxe5 {[%clk 0:02:22]}  dxe5 {[%clk 0:02:40]} 12. Ne4 {[%clk 0:02:19]}  Nbd7 {[%clk 0:02:36]} 13. Rfd1 {[%clk 0:02:10]}  g6 {[%clk 0:02:26]} 14. Rac1 {[%clk 0:01:50]}  Nxe4 {[%clk 0:02:17]} 15. Bxe4 {[%clk 0:01:51]}  Nc5 {[%clk 0:02:14]} 16. Rd5 {[%clk 0:01:21]}  f6 {[%clk 0:02:02]} 17. Bxg6 {[%clk 0:00:52]}  hxg6 {[%clk 0:01:26]} 18. Qxg6+ {[%clk 0:00:51]}  Kf8 {[%clk 0:01:26]} 19. Rxc5 {[%clk 0:00:51]}  c6 {[%clk 0:00:53]} 20. b4 {[%clk 0:00:33]}  axb4 {[%clk 0:00:52]} 21. axb4 {[%clk 0:00:34]}  Bd7 {[%clk 0:00:45]} 22. b5 {[%clk 0:00:27]}  b6 {[%clk 0:00:41]} 23. bxc6 {[%clk 0:00:25]}  bxc5 {[%clk 0:00:41]} 24. cxd7 {[%clk 0:00:25]}  Red8 {[%clk 0:00:42]} 25. Nh4 {[%clk 0:00:17]}  Qg7 {[%clk 0:00:24]} 26. Qh5 {[%clk 0:00:13]}  Rxd7 {[%clk 0:00:21]} 27. Nf5 {[%clk 0:00:13]}  Qh7 {[%clk 0:00:17]} 28. Qf3 {[%clk 0:00:13]}  Rad8 {[%clk 0:00:17]} 29. h3 {[%clk 0:00:13]}  Qf7 {[%clk 0:00:13]} 30. Kh2 {[%clk 0:00:10]}  Qg6 {[%clk 0:00:14]} 31. Ra1 {[%clk 0:00:08]}  Kg8 {[%clk 0:00:10]} 32. Ra6 {[%clk 0:00:07]}  Rf7 {[%clk 0:00:09]} 33. Ng3 {[%clk 0:00:06]}  Kh7 {[%clk 0:00:08]} 34. Rc6 {[%clk 0:00:06]}  Rdf8 {[%clk 0:00:08]} 35. Rxc5 {[%clk 0:00:07]}  Re7 {[%clk 0:00:07]} 36. e4 {[%clk 0:00:07]}  Rd8 {[%clk 0:00:06]} 37. Rd5 {[%clk 0:00:07]}  Rf7 {[%clk 0:00:07]} 38. Rxd8 {[%clk 0:00:07]}  Re7 {[%clk 0:00:06]} 39. Nf5 {[%clk 0:00:07]}  Rc7 {[%clk 0:00:06]} 40. c5 {[%clk 0:00:07]}  Rxc5 {[%clk 0:00:06]} 41. Rd7+ {[%clk 0:00:08]}  Kh8 {[%clk 0:00:07]} 42. Qb3 {[%clk 0:00:08]}  Rc8 {[%clk 0:00:05]} 43. Qe6 {[%clk 0:00:08]}  Rg8 {[%clk 0:00:06]} 44. g3 {[%clk 0:00:06]}  Rf8 {[%clk 0:00:05]} 45. Qe7 {[%clk 0:00:06]}  Rg8 {[%clk 0:00:06]} 46. Rd6 {[%clk 0:00:06]} 1-0


[Site "https://www.chess.com"]

[Event "Titled Tuesday Blitz July 13 2021"]
[White "Rodriguez, Santiago"]
[Black "Dolzhykova, Kateryna"]
[WhiteFideId "3000591"]
[BlackFideId "14113414"]
[WhiteElo "2256"]
[BlackElo "2151"]
[Result "0-1"]
[Round "09"]
[TimeControl "180+1"]
[Date "2021.07.13"]
[WhiteClock "0:00:15"]
[BlackClock "0:01:51"]

1. d4 {[%clk 0:03:00]}  Nf6 {[%clk 0:02:59]} 2. Bg5 {[%clk 0:03:01]}  Ne4 {[%clk 0:02:58]} 3. Bf4 {[%clk 0:03:01]}  d5 {[%clk 0:02:59]} 4. e3 {[%clk 0:03:01]}  g6 {[%clk 0:02:58]} 5. Bd3 {[%clk 0:03:01]}  Bg7 {[%clk 0:02:58]} 6. Bxe4 {[%clk 0:03:01]}  dxe4 {[%clk 0:02:58]} 7. Nc3 {[%clk 0:03:01]}  f5 {[%clk 0:02:58]} 8. h4 {[%clk 0:03:01]}  Be6 {[%clk 0:02:48]} 9. Nh3 {[%clk 0:02:57]}  c5 {[%clk 0:02:44]} 10. Ng5 {[%clk 0:02:23]}  Bc4 {[%clk 0:02:34]} 11. dxc5 {[%clk 0:02:09]}  Qa5 {[%clk 0:02:29]} 12. Qd2 {[%clk 0:02:09]}  Nc6 {[%clk 0:02:25]} 13. Nd1 {[%clk 0:00:25]}  Qxc5 {[%clk 0:02:14]} 14. a3 {[%clk 0:00:24]}  Rd8 {[%clk 0:02:13]} 15. Qc1 {[%clk 0:00:25]}  Ba6 {[%clk 0:02:09]} 16. h5 {[%clk 0:00:23]}  Qc4 {[%clk 0:02:04]} 17. Qd2 {[%clk 0:00:19]}  Rxd2 {[%clk 0:02:03]} 18. Kxd2 {[%clk 0:00:20]}  O-O {[%clk 0:01:55]} 19. hxg6 {[%clk 0:00:20]}  Rd8+ {[%clk 0:01:51]} 20. Kc1 {[%clk 0:00:20]}  hxg6 {[%clk 0:01:51]} 21. Rb1 {[%clk 0:00:18]}  Na5 {[%clk 0:01:51]} 22. g4 {[%clk 0:00:15]}  Nb3# {[%clk 0:01:51]} 0-1


[Site "https://www.chess.com"]

[Event "Titled Tuesday Blitz July 13 2021"]
[White "Rustemov, Alexander"]
[Black "Maiorov, Nikita"]
[WhiteFideId "4119002"]
[BlackFideId "13501720"]
[WhiteElo "2777"]
[BlackElo "2440"]
[Result "1-0"]
[Round "09"]
[TimeControl "180+1"]
[Date "2021.07.13"]
[WhiteClock "0:00:13"]
[BlackClock "0:00:01"]

1. d4 {[%clk 0:03:00]}  Nf6 {[%clk 0:02:59]} 2. c4 {[%clk 0:03:00]}  e6 {[%clk 0:02:59]} 3. Nf3 {[%clk 0:03:00]}  b6 {[%clk 0:02:58]} 4. a3 {[%clk 0:02:59]}  Bb7 {[%clk 0:02:58]} 5. Nc3 {[%clk 0:02:59]}  d5 {[%clk 0:02:57]} 6. Bg5 {[%clk 0:02:59]}  Be7 {[%clk 0:02:55]} 7. Bxf6 {[%clk 0:02:59]}  Bxf6 {[%clk 0:02:55]} 8. cxd5 {[%clk 0:03:00]}  exd5 {[%clk 0:02:55]} 9. Qa4+ {[%clk 0:03:00]}  c6 {[%clk 0:02:54]} 10. g3 {[%clk 0:02:59]}  O-O {[%clk 0:02:53]} 11. Rd1 {[%clk 0:02:59]}  Re8 {[%clk 0:02:52]} 12. Bg2 {[%clk 0:02:58]}  Na6 {[%clk 0:02:50]} 13. O-O {[%clk 0:02:58]}  c5 {[%clk 0:02:50]} 14. e3 {[%clk 0:02:56]}  Nc7 {[%clk 0:01:37]} 15. Rd2 {[%clk 0:02:44]}  c4 {[%clk 0:01:32]} 16. Qc2 {[%clk 0:02:36]}  b5 {[%clk 0:01:31]} 17. Rfd1 {[%clk 0:02:18]}  a5 {[%clk 0:01:30]} 18. Ne5 {[%clk 0:02:17]}  b4 {[%clk 0:01:28]} 19. axb4 {[%clk 0:02:14]}  axb4 {[%clk 0:01:28]} 20. Ne2 {[%clk 0:02:08]}  Ra7 {[%clk 0:01:04]} 21. Nf4 {[%clk 0:01:56]}  Qe7 {[%clk 0:00:52]} 22. Ng4 {[%clk 0:01:49]}  Bg5 {[%clk 0:00:49]} 23. Ne2 {[%clk 0:01:28]}  Bc6 {[%clk 0:00:43]} 24. h4 {[%clk 0:01:27]}  Ba4 {[%clk 0:00:42]} 25. Qf5 {[%clk 0:01:21]}  Bxd1 {[%clk 0:00:40]} 26. Rxd1 {[%clk 0:01:18]}  Bf6 {[%clk 0:00:39]} 27. Bxd5 {[%clk 0:01:16]}  Nxd5 {[%clk 0:00:31]} 28. Qxd5 {[%clk 0:01:16]}  Rc8 {[%clk 0:00:30]} 29. Rc1 {[%clk 0:01:12]}  Rac7 {[%clk 0:00:26]} 30. h5 {[%clk 0:01:07]}  Qe6 {[%clk 0:00:24]} 31. Nxf6+ {[%clk 0:00:53]}  Qxf6 {[%clk 0:00:22]} 32. Qb5 {[%clk 0:00:45]}  Qe7 {[%clk 0:00:20]} 33. Nf4 {[%clk 0:00:43]}  Rb7 {[%clk 0:00:20]} 34. Qf5 {[%clk 0:00:41]}  Qd7 {[%clk 0:00:17]} 35. Qe5 {[%clk 0:00:35]}  c3 {[%clk 0:00:14]} 36. bxc3 {[%clk 0:00:31]}  bxc3 {[%clk 0:00:14]} 37. h6 {[%clk 0:00:31]}  f6 {[%clk 0:00:14]} 38. Qa5 {[%clk 0:00:22]}  Qb5 {[%clk 0:00:05]} 39. Qa2+ {[%clk 0:00:16]}  Qb3 {[%clk 0:00:05]} 40. Qa6 {[%clk 0:00:16]}  c2 {[%clk 0:00:03]} 41. hxg7 {[%clk 0:00:14]}  Kxg7 {[%clk 0:00:01]} 42. Kg2 {[%clk 0:00:13]} 1-0


[Site "https://www.chess.com"]